Workbook

Sheet СБР
A1: АНАЛИЗ ИСПОЛНЕНИЯ СВОДНОЙ БЮДЖЕТНОЙ РОСПИСИ БЮДЖЕТА ГОРОДСКОГО ОКРУГА "ГОРОД ФОКИНО" (РАСХОДЫ) на 01.04.2013г.
N2: руб.
A3: наименование | B3: Вед. | C3: Разд. | D3: Ц.ст. | E3: Расх. | F3: Эк.класс. | G3: План на 2013 год | H3: Факт за 2012 год | I3: % исполнения | J3: План на 2013 год | K3: Факт за 2012 год | L3: % исполнения | M3: План на 2012 год | N3: Факт за 2012 год | O3: % исполнения | P3: Факт на 01.04.2013г. | Q3: % исполнения
A4: Совет народных депутатов города Фокино | B4: 001 | C4: 0000 | D4: 0000000 | E4: 000 | F4: 000 | J4: =J5 -> 570000 | K4: 570000 | L4: 0 | M4: 570000 | N4: 0 | O4: 570000 | P4: =P5 -> 105894.29 | Q4: =P4/J4*100 -> 18.57794561
A5: ОБЩЕГОСУДАРСТВЕННЫЕ ВОПРОСЫ | B5: 001 | C5: 0100 | D5: 0000000 | E5: 000 | F5: 000 | J5: =J6+J26 -> 570000 | K5: 570000 | L5: 0 | M5: 570000 | N5: 0 | O5: 570000 | P5: =P6+P26 -> 105894.29 | Q5: =P5/J5*100 -> 18.57794561
A6: Функционирование законодательных (представительных) органов государственной власти и представительных органов муниципальных образований | B6: 001 | C6: 0103 | D6: 0000000 | E6: 000 | F6: 000 | J6: =J7 -> 563000 | K6: 563000 | L6: 0 | M6: 563000 | N6: 0 | O6: 563000 | P6: =P7 -> 105894.29 | Q6: 18.8089325
A7: Центральный аппарат | B7: 001 | C7: 0103 | D7: 0020400 | E7: 000 | F7: 000 | J7: =J8+J13+J20+J23 -> 563000 | K7: 563000 | L7: 0 | M7: 563000 | N7: 0 | O7: 563000 | P7: =P8+P13+P20+P23 -> 105894.29 | Q7: 18.8089325
A8: Расходы на выплаты персоналу государственных (муниципальных) органов | B8: 001 | C8: 0103 | D8: 0020400 | E8: 120 | F8: 000 | J8: =J9+J11 -> 352000 | K8: 352000 | L8: 0 | M8: 352000 | N8: 0 | O8: 352000 | P8: =P9+P11 -> 71710.29 | Q8: 20.37224148
A9: Заработная плата | B9: 001 | C9: 0103 | D9: 0020400 | E9: 120 | F9: 211 | J9: 270353 | K9: 270353 | L9: 0 | M9: 270353 | N9: 0 | O9: 270353 | P9: 56359.69 | Q9: 20.84670412
B10: 001 | C10: 0103 | D10: 0020400 | E10: 120 | F10: 211 | J10: 270353 | K10: 270353 | L10: 0 | M10: 270353 | N10: 0 | O10: 270353 | Q10: 0
A11: Начисления на выплаты по оплате труда | B11: 001 | C11: 0103 | D11: 0020400 | E11: 120 | F11: 213 | J11: 81647 | K11: 81647 | L11: 0 | M11: 81647 | N11: 0 | O11: 81647 | P11: 15350.6 | Q11: 18.80118069
B12: 001 | C12: 0103 | D12: 0020400 | E12: 120 | F12: 213 | J12: 81647 | K12: 81647 | L12: 0 | M12: 81647 | N12: 0 | O12: 81647 | P12: 81647 | Q12: 100
A13: Иные закупки товаров, работ и услуг для государственных(муниципальных) нужд | B13: 001 | C13: 0103 | D13: 0020400 | E13: 240 | F13: 000 | J13: =J14+J16+J18 -> 209000 | K13: 209000 | L13: 0 | M13: 209000 | N13: 0 | O13: 209000 | P13: =P14+P16+P18 -> 34084 | Q13: 16.30813397
A14: Услуги связи | B14: 001 | C14: 0103 | D14: 0020400 | E14: 240 | F14: 221 | J14: 12000 | K14: 12000 | L14: 0 | M14: 12000 | N14: 0 | O14: 12000 | P14: 3000 | Q14: 25
B15: 001 | C15: 0103 | D15: 0020400 | E15: 240 | F15: 221 | J15: 12000 | K15: 12000 | L15: 0 | M15: 12000 | N15: 0 | O15: 12000 | Q15: 0
A16: Прочие работы, услуги | B16: 001 | C16: 0103 | D16: 0020400 | E16: 240 | F16: 226 | J16: 177000 | K16: 177000 | L16: 0 | M16: 177000 | N16: 0 | O16: 177000 | P16: 27084 | Q16: 15.30169492
B17: 001 | C17: 0103 | D17: 0020400 | E17: 240 | F17: 226 | J17: 177000 | K17: 177000 | L17: 0 | M17: 177000 | N17: 0 | O17: 177000 | Q17: 0
A18: Увеличение стоимости материальных запасов | B18: 001 | C18: 0103 | D18: 0020400 | E18: 240 | F18: 340 | J18: 20000 | K18: 20000 | L18: 0 | M18: 20000 | N18: 0 | O18: 20000 | P18: 4000 | Q18: 20
B19: 001 | C19: 0103 | D19: 0020400 | E19: 240 | F19: 340 | J19: 20000 | K19: 20000 | L19: 0 | M19: 20000 | N19: 0 | O19: 20000 | P19: 20000 | Q19: 100
A20: Уплата налога на имущество организаций и земельного налога | B20: 001 | C20: 0103 | D20: 0020400 | E20: 851 | F20: 000 | J20: =J21 -> 1000 | K20: 1000 | L20: 0 | M20: 1000 | N20: 0 | O20: 1000 | P20: =P21 -> 0 | Q20: 0
A21: Прочие расходы | B21: 001 | C21: 0103 | D21: 0020400 | E21: 851 | F21: 290 | J21: 1000 | K21: 1000 | L21: 0 | M21: 1000 | N21: 0 | O21: 1000 | P21: 0 | Q21: 0
B22: 001 | C22: 0103 | D22: 0020400 | E22: 851 | F22: 290 | J22: 1000 | K22: 1000 | L22: 0 | M22: 1000 | N22: 0 | O22: 1000 | P22: 1000 | Q22: 100
A23: Уплата прочих налогов, сборов и иных платежей | B23: 001 | C23: 0103 | D23: 0020400 | E23: 852 | F23: 000 | J23: =J24 -> 1000 | K23: 1000 | L23: 0 | M23: 1000 | N23: 0 | O23: 1000 | P23: =P24 -> 100 | Q23: 10
A24: Прочие расходы | B24: 001 | C24: 0103 | D24: 0020400 | E24: 852 | F24: 290 | J24: 1000 | K24: 1000 | L24: 0 | M24: 1000 | N24: 0 | O24: 1000 | P24: 100 | Q24: 10
B25: 001 | C25: 0103 | D25: 0020400 | E25: 852 | F25: 290 | J25: 1000 | K25: 1000 | L25: 0 | M25: 1000 | N25: 0 | O25: 1000 | P25: 1000 | Q25: 100
A26: Другие общегосударственные вопросы | B26: 001 | C26: 0113 | D26: 0000000 | E26: 000 | F26: 000 | J26: =J27 -> 7000 | K26: 7000 | L26: 0 | M26: 7000 | N26: 0 | O26: 7000 | P26: =P27 -> 0 | Q26: 0
A27: Долгосрочнаяя целевая программа "Развитие информационного обеспечения " | B27: 001 | C27: 0113 | D27: 7952200 | E27: 000 | F27: 000 | J27: =J28 -> 7000 | K27: 7000 | L27: 0 | M27: 7000 | N27: 0 | O27: 7000 | P27: =P28 -> 0 | Q27: 0
A28: Иные закупки товаров, работ и услуг для государственных(муниципальных) нужд | B28: 001 | C28: 0113 | D28: 7952200 | E28: 240 | F28: 000 | J28: =J29+J31+J33 -> 7000 | K28: 7000 | L28: 0 | M28: 7000 | N28: 0 | O28: 7000 | P28: =P29+P31+P33 -> 0 | Q28: 0
A29: Работы, услуги по содержанию имущества | B29: 001 | C29: 0113 | D29: 7952200 | E29: 240 | F29: 225 | J29: 3000 | K29: 3000 | L29: 0 | M29: 3000 | N29: 0 | O29: 3000 | P29: 0 | Q29: 0
B30: 001 | C30: 0113 | D30: 7952200 | E30: 240 | F30: 225 | J30: 3000 | K30: 3000 | L30: 0 | M30: 3000 | N30: 0 | O30: 3000 | Q30: 0
A31: Прочие работы, услуги | B31: 001 | C31: 0113 | D31: 7952200 | E31: 240 | F31: 226 | J31: 2000 | K31: 2000 | L31: 0 | M31: 2000 | N31: 0 | O31: 2000 | P31: 0 | Q31: 0
B32: 001 | C32: 0113 | D32: 7952200 | E32: 240 | F32: 226 | J32: 2000 | K32: 2000 | L32: 0 | M32: 2000 | N32: 0 | O32: 2000 | Q32: 0
A33: Увеличение стоимости основных средств | B33: 001 | C33: 0113 | D33: 7952200 | E33: 240 | F33: 310 | J33: 2000 | K33: 2000 | L33: 0 | M33: 2000 | N33: 0 | O33: 2000 | P33: 0 | Q33: 0
B34: 001 | C34: 0113 | D34: 7952200 | E34: 240 | F34: 310 | J34: 2000 | K34: 2000 | L34: 0 | M34: 2000 | N34: 0 | O34: 2000 | P34: 2000 | Q34: 100
A35: Администрация города Фокино | B35: 002 | C35: 0000 | D35: 0000000 | E35: 000 | F35: 000 | J35: =J36+J106+J112+J129+J171+J204+J243+J253+J315+J321 -> 136742566.5 | K35: 136468607.6 | L35: 0 | M35: 136468607.6 | N35: 0 | O35: 136468607.6 | P35: =P36+P106+P112+P129+P171+P204+P243+P253+P315+P321 -> 37697839.77 | Q35: 27.56847464
A36: ОБЩЕГОСУДАРСТВЕННЫЕ ВОПРОСЫ | B36: 002 | C36: 0100 | D36: 0000000 | E36: 000 | F36: 000 | J36: =J37+J73+J78 -> 9157057 | K36: 9157057 | L36: 0 | M36: 9157057 | N36: 0 | O36: 9157057 | P36: =P37+P73+P78 -> 2123008.28 | Q36: 23.18439516
A37: Функционирование Правительства Российской Федерации, высших исполнительных органов государственной власти субъектов Российской Федерации, местных администраций | B37: 002 | C37: 0104 | D37: 0000000 | E37: 000 | F37: 000 | J37: =J38+J67 -> 7763200 | K37: 7763200 | L37: 0 | M37: 7763200 | N37: 0 | O37: 7763200 | P37: =P38+P67 -> 2004462.88 | Q37: 25.82005977
A38: Центральный аппарат | B38: 002 | C38: 0104 | D38: 0020400 | E38: 000 | F38: 000 | J38: =J39+J46+J61+J64 -> 7037200 | K38: 7037200 | L38: 0 | M38: 7037200 | N38: 0 | O38: 7037200 | P38: =P39+P46+P61+P64 -> 1809162.67 | Q38: 25.70855838
A39: Расходы на выплаты персоналу государственных (муниципальных) органов | B39: 002 | C39: 0104 | D39: 0020400 | E39: 120 | F39: 000 | J39: =J40+J42+J44 -> 5900000 | K39: 5900000 | L39: 0 | M39: 5900000 | N39: 0 | O39: 5900000 | P39: =P40+P42+P44 -> 1407852.13 | Q39: 23.86190051
A40: Заработная плата | B40: 002 | C40: 0104 | D40: 0020400 | E40: 120 | F40: 211 | J40: 4528802 | K40: 4528802 | L40: 0 | M40: 4528802 | N40: 0 | O40: 4528802 | P40: 1074572.17 | Q40: 23.72751491
B41: 002 | C41: 0104 | D41: 0020400 | E41: 120 | F41: 211 | J41: 4528802 | K41: 4528802 | L41: 0 | M41: 4528802 | N41: 0 | O41: 4528802 | Q41: 0
A42: Прочие выплаты | B42: 002 | C42: 0104 | D42: 0020400 | E42: 120 | F42: 212 | J42: 3500 | K42: 3500 | L42: 0 | M42: 3500 | N42: 0 | O42: 3500 | P42: 196.77 | Q42: 5.622
B43: 002 | C43: 0104 | D43: 0020400 | E43: 120 | F43: 212 | J43: 3500 | K43: 3500 | L43: 0 | M43: 3500 | N43: 0 | O43: 3500 | Q43: 0
A44: Начисления на выплаты по оплате труда | B44: 002 | C44: 0104 | D44: 0020400 | E44: 120 | F44: 213 | J44: 1367698 | K44: 1367698 | L44: 0 | M44: 1367698 | N44: 0 | O44: 1367698 | P44: 333083.19 | Q44: 24.3535627
B45: 002 | C45: 0104 | D45: 0020400 | E45: 120 | F45: 213 | J45: 1367698 | K45: 1367698 | L45: 0 | M45: 1367698 | N45: 0 | O45: 1367698 | P45: 1367698 | Q45: 100
A46: Иные закупки товаров, работ и услуг для государственных(муниципальных) нужд | B46: 002 | C46: 0104 | D46: 0020400 | E46: 240 | F46: 000 | J46: =J47+J49+J51+J53+J55+J57+J59 -> 1032200 | K46: 1032200 | L46: 0 | M46: 1032200 | N46: 0 | O46: 1032200 | P46: =P47+P49+P51+P53+P55+P57+P59 -> 375542.74 | Q46: 36.38274947
A47: Услуги связи | B47: 002 | C47: 0104 | D47: 0020400 | E47: 240 | F47: 221 | J47: 180000 | K47: 180000 | L47: 0 | M47: 180000 | N47: 0 | O47: 180000 | P47: 49577.83 | Q47: 27.54323889
B48: 002 | C48: 0104 | D48: 0020400 | E48: 240 | F48: 221 | J48: 180000 | K48: 180000 | L48: 0 | M48: 180000 | N48: 0 | O48: 180000 | Q48: 0
A49: Коммунальные услуги | B49: 002 | C49: 0104 | D49: 0020400 | E49: 240 | F49: 223 | J49: 500000 | K49: 500000 | L49: 0 | M49: 500000 | N49: 0 | O49: 500000 | P49: 291709.85 | Q49: 58.34197
B50: 002 | C50: 0104 | D50: 0020400 | E50: 240 | F50: 223 | J50: 500000 | K50: 500000 | L50: 0 | M50: 500000 | N50: 0 | O50: 500000 | Q50: 0
A51: Работы, услуги по содержанию имущества | B51: 002 | C51: 0104 | D51: 0020400 | E51: 240 | F51: 225 | J51: 47000 | K51: 47000 | L51: 0 | M51: 47000 | N51: 0 | O51: 47000 | P51: 0 | Q51: 0
B52: 002 | C52: 0104 | D52: 0020400 | E52: 240 | F52: 225 | J52: 47000 | K52: 47000 | L52: 0 | M52: 47000 | N52: 0 | O52: 47000 | Q52: 0
A53: Прочие работы, услуги | B53: 002 | C53: 0104 | D53: 0020400 | E53: 240 | F53: 226 | J53: 70000 | K53: 70000 | L53: 0 | M53: 70000 | N53: 0 | O53: 70000 | P53: 5004.72 | Q53: 7.1496
B54: 002 | C54: 0104 | D54: 0020400 | E54: 240 | F54: 226 | J54: 70000 | K54: 70000 | L54: 0 | M54: 70000 | N54: 0 | O54: 70000 | Q54: 0
A55: Прочие расходы | B55: 002 | C55: 0104 | D55: 0020400 | E55: 240 | F55: 290 | J55: 10000 | K55: 10000 | L55: 0 | M55: 10000 | N55: 0 | O55: 10000 | P55: 0 | Q55: 0
B56: 002 | C56: 0104 | D56: 0020400 | E56: 240 | F56: 290 | J56: 10000 | K56: 10000 | L56: 0 | M56: 10000 | N56: 0 | O56: 10000 | Q56: 0
A57: Увеличение стоимости основных средств | B57: 002 | C57: 0104 | D57: 0020400 | E57: 240 | F57: 310 | J57: 10000 | K57: 10000 | L57: 0 | M57: 10000 | N57: 0 | O57: 10000 | P57: 845 | Q57: 8.45
B58: 002 | C58: 0104 | D58: 0020400 | E58: 240 | F58: 310 | J58: 10000 | K58: 10000 | L58: 0 | M58: 10000 | N58: 0 | O58: 10000 | Q58: 0
A59: Увеличение стоимости материальных запасов | B59: 002 | C59: 0104 | D59: 0020400 | E59: 240 | F59: 340 | J59: 215200 | K59: 215200 | L59: 0 | M59: 215200 | N59: 0 | O59: 215200 | P59: 28405.34 | Q59: 13.19950743
B60: 002 | C60: 0104 | D60: 0020400 | E60: 240 | F60: 340 | J60: 215200 | K60: 215200 | L60: 0 | M60: 215200 | N60: 0 | O60: 215200 | P60: 215200 | Q60: 100
A61: Уплата налога на имущество организаций и земельного налога | B61: 002 | C61: 0104 | D61: 0020400 | E61: 851 | F61: 000 | J61: =J62 -> 70000 | K61: 70000 | L61: 0 | M61: 70000 | N61: 0 | O61: 70000 | P61: =P62 -> 15272 | Q61: 21.81714286
A62: Прочие расходы | B62: 002 | C62: 0104 | D62: 0020400 | E62: 851 | F62: 290 | J62: 70000 | K62: 70000 | L62: 0 | M62: 70000 | N62: 0 | O62: 70000 | P62: 15272 | Q62: 21.81714286
B63: 002 | C63: 0104 | D63: 0020400 | E63: 851 | F63: 290 | J63: 70000 | K63: 70000 | L63: 0 | M63: 70000 | N63: 0 | O63: 70000 | P63: 70000 | Q63: 100
A64: Уплата прочих налогов, сборов и иных платежей | B64: 002 | C64: 0104 | D64: 0020400 | E64: 852 | F64: 000 | J64: =J65 -> 35000 | K64: 35000 | L64: 0 | M64: 35000 | N64: 0 | O64: 35000 | P64: =P65 -> 10495.8 | Q64: 29.988
A65: Прочие расходы | B65: 002 | C65: 0104 | D65: 0020400 | E65: 852 | F65: 290 | J65: 35000 | K65: 35000 | L65: 0 | M65: 35000 | N65: 0 | O65: 35000 | P65: 10495.8 | Q65: 29.988
B66: 002 | C66: 0104 | D66: 0020400 | E66: 852 | F66: 290 | J66: 35000 | K66: 35000 | L66: 0 | M66: 35000 | N66: 0 | O66: 35000 | P66: 35000 | Q66: 100
A67: Глава местной администрации (исполнительно-распорядительного органа муниципального образования) | B67: 002 | C67: 0104 | D67: 0020800 | E67: 000 | F67: 000 | J67: =J68 -> 726000 | K67: 726000 | L67: 0 | M67: 726000 | N67: 0 | O67: 726000 | P67: =P68 -> 195300.21 | Q67: 26.90085537
A68: Расходы на выплаты персоналу государственных (муниципальных) органов | B68: 002 | C68: 0104 | D68: 0020800 | E68: 120 | F68: 000 | J68: =J69+J71 -> 726000 | K68: 726000 | L68: 0 | M68: 726000 | N68: 0 | O68: 726000 | P68: =P69+P71 -> 195300.21 | Q68: 26.90085537
A69: Заработная плата | B69: 002 | C69: 0104 | D69: 0020800 | E69: 120 | F69: 211 | J69: 506748 | K69: 506748 | L69: 0 | M69: 506748 | N69: 0 | O69: 506748 | P69: 153955.83 | Q69: =P69/J69*100 -> 30.38114211
B70: 002 | C70: 0104 | D70: 0020800 | E70: 120 | F70: 211 | J70: 506748 | K70: 506748 | L70: 0 | M70: 506748 | N70: 0 | O70: 506748 | Q70: 0
A71: Начисления на выплаты по оплате труда | B71: 002 | C71: 0104 | D71: 0020800 | E71: 120 | F71: 213 | J71: 219252 | K71: 219252 | L71: 0 | M71: 219252 | N71: 0 | O71: 219252 | P71: 41344.38 | Q71: 18.85701385
B72: 002 | C72: 0104 | D72: 0020800 | E72: 120 | F72: 213 | J72: 219252 | K72: 219252 | L72: 0 | M72: 219252 | N72: 0 | O72: 219252 | P72: 219252 | Q72: 100
A73: Резервные фонды | B73: 002 | C73: 0111 | D73: 0000000 | E73: 000 | F73: 000 | J73: =J74 -> 500000 | K73: 500000 | L73: 0 | M73: 500000 | N73: 0 | O73: 500000 | P73: =P74 -> 0 | Q73: 0
A74: Резервные фонды местных администраций | B74: 002 | C74: 0111 | D74: 0700500 | E74: 000 | F74: 000 | J74: =J75 -> 500000 | K74: 500000 | L74: 0 | M74: 500000 | N74: 0 | O74: 500000 | P74: =P75 -> 0 | Q74: 0
A75: Резервные средства | B75: 002 | C75: 0111 | D75: 0700500 | E75: 870 | F75: 000 | J75: =J76 -> 500000 | K75: 500000 | L75: 0 | M75: 500000 | N75: 0 | O75: 500000 | P75: =P76 -> 0 | Q75: 0
A76: Прочие расходы | B76: 002 | C76: 0111 | D76: 0700500 | E76: 870 | F76: 290 | J76: 500000 | K76: 500000 | L76: 0 | M76: 500000 | N76: 0 | O76: 500000 | P76: 0 | Q76: 0
B77: 002 | C77: 0111 | D77: 0700500 | E77: 870 | F77: 290 | J77: 500000 | K77: 500000 | L77: 0 | M77: 500000 | N77: 0 | O77: 500000 | P77: 500000 | Q77: 100
A78: Другие общегосударственные вопросы | B78: 002 | C78: 0113 | D78: 0000000 | E78: 000 | F78: 000 | J78: =J79+J91+J94+J102 -> 893857 | K78: 893857 | L78: 0 | M78: 893857 | N78: 0 | O78: 893857 | P78: =P79+P91+P94+P102 -> 118545.4 | Q78: 13.26223322
A79: Организация деятельности административных комиссий | B79: 002 | C79: 0113 | D79: 5210204 | E79: 000 | F79: 000 | J79: =J80+J85 -> 287200 | K79: 287200 | L79: 0 | M79: 287200 | N79: 0 | O79: 287200 | P79: =P80+P85 -> 48426.19 | Q79: 16.86148677
A80: Расходы на выплаты персоналу государственных (муниципальных) органов | B80: 002 | C80: 0113 | D80: 5210204 | E80: 120 | F80: 000 | J80: =J81+J83 -> 230000 | K80: 230000 | L80: 0 | M80: 230000 | N80: 0 | O80: 230000 | P80: =P81+P83 -> 44596.38 | Q80: 19.38973043
A81: Заработная плата | B81: 002 | C81: 0113 | D81: 5210204 | E81: 120 | F81: 211 | J81: 176650 | K81: 176650 | L81: 0 | M81: 176650 | N81: 0 | O81: 176650 | P81: 35240 | Q81: 19.9490518
B82: 002 | C82: 0113 | D82: 5210204 | E82: 120 | F82: 211 | J82: 176650 | K82: 176650 | L82: 0 | M82: 176650 | N82: 0 | O82: 176650 | Q82: 0
A83: Начисления на выплаты по оплате труда | B83: 002 | C83: 0113 | D83: 5210204 | E83: 120 | F83: 213 | J83: 53350 | K83: 53350 | L83: 0 | M83: 53350 | N83: 0 | O83: 53350 | P83: 9356.38 | Q83: 17.53773196
B84: 002 | C84: 0113 | D84: 5210204 | E84: 120 | F84: 213 | J84: 53350 | K84: 53350 | L84: 0 | M84: 53350 | N84: 0 | O84: 53350 | P84: 53350 | Q84: 100
A85: Иные закупки товаров, работ и услуг для государственных(муниципальных) нужд | B85: 002 | C85: 0113 | D85: 5210204 | E85: 240 | F85: 000 | J85: =J86+J88+J89+J90 -> 57200 | K85: 57200 | L85: 0 | M85: 57200 | N85: 0 | O85: 57200 | P85: =P86+P88+P89+P90 -> 3829.81 | Q85: 6.695472028
A86: Услуги связи | B86: 002 | C86: 0113 | D86: 5210204 | E86: 240 | F86: 221 | J86: 15000 | K86: 15000 | L86: 0 | M86: 15000 | N86: 0 | O86: 15000 | P86: 3829.81 | Q86: 25.53206667
B87: 002 | C87: 0113 | D87: 5210204 | E87: 240 | F87: 221 | J87: 15000 | K87: 15000 | L87: 0 | M87: 15000 | N87: 0 | O87: 15000 | Q87: 0
A88: Прочие работы, услуги | B88: 002 | C88: 0113 | D88: 5210204 | E88: 240 | F88: 226 | J88: 10000 | K88: 10000 | L88: 0 | M88: 10000 | N88: 0 | O88: 10000 | P88: 0 | Q88: 0
A89: Увеличение стоимости основных средств | B89: 002 | C89: 0113 | D89: 5210204 | E89: 240 | F89: 310 | J89: 15000 | K89: 15000 | L89: 0 | M89: 15000 | N89: 0 | O89: 15000 | P89: 0 | Q89: 0
A90: Увеличение стоимости материальных запасов | B90: 002 | C90: 0113 | D90: 5210204 | E90: 240 | F90: 340 | J90: 17200 | K90: 17200 | L90: 0 | M90: 17200 | N90: 0 | O90: 17200 | P90: 0 | Q90: 0
A91: Долгосрочная целевая программа "Энергосбережение и повышение энергоэффективности в г. Фокино (2011-2020гг)" | B91: 002 | C91: 0113 | D91: 7951800 | E91: 000 | F91: 000 | J91: =J92 -> 250000 | K91: 250000 | L91: 0 | M91: 250000 | N91: 0 | O91: 250000 | P91: =P92 -> 0 | Q91: 0
A92: Иные закупки товаров, работ и услуг для государственных(муниципальных) нужд | B92: 002 | C92: 0113 | D92: 7951800 | E92: 240 | F92: 000 | J92: =J93 -> 250000 | K92: 250000 | L92: 0 | M92: 250000 | N92: 0 | O92: 250000 | P92: =P93 -> 0 | Q92: 0
A93: Работы, услуги по содержанию имущества | B93: 002 | C93: 0113 | D93: 7951800 | E93: 240 | F93: 225 | J93: 250000 | K93: 250000 | L93: 0 | M93: 250000 | N93: 0 | O93: 250000 | P93: 0 | Q93: 0
A94: Долгосрочнаяя целевая программа "Развитие информационного обеспечения " | B94: 002 | C94: 0113 | D94: 7952200 | E94: 000 | F94: 000 | J94: =J95 -> 120000 | K94: 120000 | L94: 0 | M94: 120000 | N94: 0 | O94: 120000 | P94: =P95 -> 70119.21 | Q94: 58.432675
A95: Иные закупки товаров, работ и услуг для государственных(муниципальных) нужд | B95: 002 | C95: 0113 | D95: 7952200 | E95: 240 | F95: 000 | J95: =J96+J97+J98+J100 -> 120000 | K95: 120000 | L95: 0 | M95: 120000 | N95: 0 | O95: 120000 | P95: =P96+P97+P98+P100 -> 70119.21 | Q95: 58.432675
A96: Работы, услуги по содержанию имущества | B96: 002 | C96: 0113 | D96: 7952200 | E96: 240 | F96: 225 | J96: =90000-23363 -> 66637 | K96: 90000 | L96: 0 | M96: 90000 | N96: 0 | O96: 90000 | P96: 16838.21 | Q96: 25.26855951
A97: Прочие работы, услуги | B97: 002 | C97: 0113 | D97: 7952200 | E97: 240 | F97: 226 | J97: =15000+6700 -> 21700 | K97: 15000 | L97: 0 | M97: 15000 | N97: 0 | O97: 15000 | P97: 21700 | Q97: 100
A98: Увеличение стоимости основных средств | B98: 002 | C98: 0113 | D98: 7952200 | E98: 240 | F98: 310 | J98: 1500 | K98: 1500 | L98: 0 | M98: 1500 | N98: 0 | O98: 1500 | P98: 1418 | Q98: 94.53333333
B99: 002 | C99: 0113 | D99: 7952200 | E99: 240 | F99: 310 | J99: 1500 | K99: 1500 | L99: 0 | M99: 1500 | N99: 0 | O99: 1500 | Q99: 0
A100: Увеличение стоимости материальных запасов | B100: 002 | C100: 0113 | D100: 7952200 | E100: 240 | F100: 340 | J100: =13500+16663 -> 30163 | K100: 13500 | L100: 0 | M100: 13500 | N100: 0 | O100: 13500 | P100: 30163 | Q100: 100
B101: 002 | C101: 0113 | D101: 7952200 | E101: 240 | F101: 340 | J101: 13500 | K101: 13500 | L101: 0 | M101: 13500 | N101: 0 | O101: 13500 | P101: 13500 | Q101: 100
A102: Возмещение морального вреда по решению суда | B102: 002 | C102: 0113 | D102: 9800000 | E102: 000 | F102: 000 | J102: =J103 -> 236657 | K102: 236657 | L102: 0 | M102: 236657 | N102: 0 | O102: 236657 | P102: =P103 -> 0 | Q102: 0
A103: Исполнение судебных актов и мировых соглашений | B103: 002 | C103: 0113 | D103: 9800000 | E103: 830 | F103: 000 | J103: =J104 -> 236657 | K103: 236657 | L103: 0 | M103: 236657 | N103: 0 | O103: 236657 | P103: =P104 -> 0 | Q103: 0
A104: Прочие расходы | B104: 002 | C104: 0113 | D104: 9800000 | E104: 830 | F104: 290 | J104: 236657 | K104: 236657 | L104: 0 | M104: 236657 | N104: 0 | O104: 236657 | P104: 0 | Q104: 0
B105: 002 | C105: 0113 | D105: 9800000 | E105: 830 | F105: 290 | J105: 236657 | K105: 236657 | L105: 0 | M105: 236657 | N105: 0 | O105: 236657 | P105: 236657 | Q105: 100
A106: НАЦИОНАЛЬНАЯ ОБОРОНА | B106: 002 | C106: 0200 | D106: 0000000 | E106: 000 | F106: 000 | J106: =J107 -> 382800 | K106: 382800 | L106: 0 | M106: 382800 | N106: 0 | O106: 382800 | P106: =P107 -> 60535.2 | Q106: 15.8137931
A107: Мобилизационная и вневойсковая подготовка | B107: 002 | C107: 0203 | D107: 0000000 | E107: 000 | F107: 000 | J107: =J108 -> 382800 | K107: 382800 | L107: 0 | M107: 382800 | N107: 0 | O107: 382800 | P107: =P108 -> 60535.2 | Q107: 15.8137931
A108: Субвенции бюджетам городских округов на осуществление отдельных государственных полномочий по первичному воинскому учету на территориях, где отсутствуют военные комиссариаты | B108: 002 | C108: 0203 | D108: 0013602 | E108: 000 | F108: 000 | J108: =J109 -> 382800 | K108: 382800 | L108: 0 | M108: 382800 | N108: 0 | O108: 382800 | P108: =P109 -> 60535.2 | Q108: 15.8137931
A109: Расходы на выплаты персоналу государственных (муниципальных) органов | B109: 002 | C109: 0203 | D109: 0013602 | E109: 120 | F109: 000 | J109: =J110+J111 -> 382800 | K109: 382800 | L109: 0 | M109: 382800 | N109: 0 | O109: 382800 | P109: =P110+P111 -> 60535.2 | Q109: 15.8137931
A110: Заработная плата | B110: 002 | C110: 0203 | D110: 0013602 | E110: 120 | F110: 211 | J110: 294000 | K110: 294000 | L110: 0 | M110: 294000 | N110: 0 | O110: 294000 | P110: 46137.34 | Q110: 15.69297279
A111: Начисления на выплаты по оплате труда | B111: 002 | C111: 0203 | D111: 0013602 | E111: 120 | F111: 213 | J111: 88800 | K111: 88800 | L111: 0 | M111: 88800 | N111: 0 | O111: 88800 | P111: 14397.86 | Q111: 16.21380631
A112: НАЦИОНАЛЬНАЯ БЕЗОПАСНОСТЬ И ПРАВООХРАНИТЕЛЬНАЯ ДЕЯТЕЛЬНОСТЬ | B112: 002 | C112: 0300 | D112: 0000000 | E112: 000 | F112: 000 | J112: =J113 -> 92835 | K112: 92835 | L112: 0 | M112: 92835 | N112: 0 | O112: 92835 | P112: =P113 -> 92831.73 | Q112: 99.99647762
A113: Защита населения и территории от чрезвычайных ситуаций природного и техногенного характера, гражданская оборона | B113: 002 | C113: 0309 | D113: 0000000 | E113: 000 | F113: 000 | J113: =J114 -> 92835 | K113: 92835 | L113: 0 | M113: 92835 | N113: 0 | O113: 92835 | P113: =P114 -> 92831.73 | Q113: 99.99647762
A114: Органы национальной безопасности и правоохранительной деятельности | B114: 002 | C114: 0309 | D114: 2026701 | E114: 000 | F114: 000 | J114: =J115+J120 -> 92835 | K114: 92835 | L114: 0 | M114: 92835 | N114: 0 | O114: 92835 | P114: =P115+P120 -> 92831.73 | Q114: 99.99647762
A115: Расходы на выплаты персоналу государственных (муниципальных) органов | B115: 002 | C115: 0309 | D115: 2026701 | E115: 120 | F115: 000 | J115: =J116+J118 -> 44656 | K115: 44656 | L115: 0 | M115: 44656 | N115: 0 | O115: 44656 | P115: =P116+P118 -> 44654.2 | Q115: 99.99596919
A116: Заработная плата | B116: 002 | C116: 0309 | D116: 2026701 | E116: 120 | F116: 211 | J116: 32584 | K116: 32584 | L116: 0 | M116: 32584 | N116: 0 | O116: 32584 | P116: 32583.19 | Q116: 99.99751412
B117: 002 | C117: 0309 | D117: 2026701 | E117: 120 | F117: 211 | J117: 32584 | K117: 32584 | L117: 0 | M117: 32584 | N117: 0 | O117: 32584 | Q117: 0
A118: Начисления на выплаты по оплате труда | B118: 002 | C118: 0309 | D118: 2026701 | E118: 120 | F118: 213 | J118: 12072 | K118: 12072 | L118: 0 | M118: 12072 | N118: 0 | O118: 12072 | P118: 12071.01 | Q118: 99.9917992
B119: 002 | C119: 0309 | D119: 2026701 | E119: 120 | F119: 213 | J119: 12072 | K119: 12072 | L119: 0 | M119: 12072 | N119: 0 | O119: 12072 | P119: 12072 | Q119: 100
A120: Иные закупки товаров, работ и услуг для государственных(муниципальных) нужд | B120: 002 | C120: 0309 | D120: 2026701 | E120: 240 | F120: 000 | J120: =J121+J123+J125+J127 -> 48179 | K120: 48179 | L120: 0 | M120: 48179 | N120: 0 | O120: 48179 | P120: =P121+P123+P125+P127 -> 48177.53 | Q120: 99.99694888
A121: Услуги связи | B121: 002 | C121: 0309 | D121: 2026701 | E121: 240 | F121: 221 | J121: 1434 | K121: 1434 | L121: 0 | M121: 1434 | N121: 0 | O121: 1434 | P121: 1433.12 | Q121: 99.93863319
B122: 002 | C122: 0309 | D122: 2026701 | E122: 240 | F122: 221 | J122: 1434 | K122: 1434 | L122: 0 | M122: 1434 | N122: 0 | O122: 1434 | Q122: 0
A123: Работы, услуги по содержанию имущества | B123: 002 | C123: 0309 | D123: 2026701 | E123: 240 | F123: 225 | J123: =14608.87+0.13 -> 14609 | K123: 14608.87 | L123: 0 | M123: 14608.87 | N123: 0 | O123: 14608.87 | P123: 14608.87 | Q123: 99.99911014
B124: 002 | C124: 0309 | D124: 2026701 | E124: 240 | F124: 225 | J124: 14608.87 | K124: 14608.87 | L124: 0 | M124: 14608.87 | N124: 0 | O124: 14608.87 | Q124: 0
A125: Прочие работы, услуги | B125: 002 | C125: 0309 | D125: 2026701 | E125: 240 | F125: 226 | J125: =0.13-0.13 -> 0 | K125: 0.13 | L125: 0 | M125: 0.13 | N125: 0 | O125: 0.13
B126: 002 | C126: 0309 | D126: 2026701 | E126: 240 | F126: 226 | J126: 0.13 | K126: 0.13 | L126: 0 | M126: 0.13 | N126: 0 | O126: 0.13 | Q126: 0
A127: Увеличение стоимости материальных запасов | B127: 002 | C127: 0309 | D127: 2026701 | E127: 240 | F127: 340 | J127: 32136 | K127: 32136 | L127: 0 | M127: 32136 | N127: 0 | O127: 32136 | P127: 32135.54 | Q127: 99.99856858
B128: 002 | C128: 0309 | D128: 2026701 | E128: 240 | F128: 340 | J128: 32136 | K128: 32136 | L128: 0 | M128: 32136 | N128: 0 | O128: 32136 | P128: 32136 | Q128: 100
A129: НАЦИОНАЛЬНАЯ ЭКОНОМИКА | B129: 002 | C129: 0400 | D129: 0000000 | E129: 000 | F129: 000 | J129: =J130+J140+J156 -> 18441052 | K129: 18416000 | L129: 0 | M129: 18416000 | N129: 0 | O129: 18416000 | P129: =P130+P140+P156 -> 13386440.82 | Q129: 72.59044018
A130: Транспорт | B130: 002 | C130: 0408 | D130: 0000000 | E130: 000 | F130: 000 | J130: =J132+J136 -> 804000 | K130: 847000 | L130: 0 | M130: 847000 | N130: 0 | O130: 847000 | P130: =P132+P136 -> 0 | Q130: 0
B131: 002 | C131: 0408 | D131: 3170100 | E131: 810 | F131: 242 | J131: 0 | K131: 0 | L131: 0 | M131: 0 | N131: 0 | O131: 0 | P131: 0
A132: Субсидии транспортным организациям на компенсацию потерь в доходах, возникающих в результате регулирования тарифов на перевозки пассажиров за счет средств областного бюджета | B132: 002 | C132: 0408 | D132: 3170110 | E132: 000 | F132: 000 | J132: =J133 -> 592000 | K132: 592000 | L132: 0 | M132: 592000 | N132: 0 | O132: 592000 | P132: =P133 -> 0 | Q132: 0
A133: Субсидии юридическим лицам (кроме государственных(муниципальных) учреждений), индивидуальным предпринимателям и физическим лицам - производителям товаров, работ, услуг | B133: 002 | C133: 0408 | D133: 3170110 | E133: 810 | F133: 000 | J133: =J134 -> 592000 | K133: 592000 | L133: 0 | M133: 592000 | N133: 0 | O133: 592000 | P133: =P134 -> 0 | Q133: =P133/J133*100 -> 0
A134: Безвозмездные перечисления организациям , за исключением государственных и муниципальных | B134: 002 | C134: 0408 | D134: 3170110 | E134: 810 | F134: 242 | J134: 592000 | K134: 592000 | L134: 0 | M134: 592000 | N134: 0 | O134: 592000 | P134: 0 | Q134: 0
B135: 002 | C135: 0408 | D135: 3170110 | E135: 810 | F135: 242 | J135: 592000 | K135: 592000 | L135: 0 | M135: 592000 | N135: 0 | O135: 592000 | P135: 592000 | Q135: 100
A136: Субсидии транспортным организациям на компенсацию потерь в доходах, возникающих в результате регулирования тарифов на перевозки пассажиров за счет средств местного бюджета | B136: 002 | C136: 0408 | D136: 3170120 | E136: 000 | F136: 000 | J136: =J137 -> 212000 | K136: 255000 | L136: 0 | M136: 255000 | N136: 0 | O136: 255000 | P136: =P137 -> 0 | Q136: 0
A137: Субсидии юридическим лицам (кроме государственных(муниципальных) учреждений), индивидуальным предпринимателям и физическим лицам - производителям товаров, работ, услуг | B137: 002 | C137: 0408 | D137: 3170120 | E137: 810 | F137: 000 | J137: =J138 -> 212000 | K137: 255000 | L137: 0 | M137: 255000 | N137: 0 | O137: 255000 | P137: =P138 -> 0 | Q137: 0
A138: Безвозмездные перечисления организациям , за исключением государственных и муниципальных | B138: 002 | C138: 0408 | D138: 3170120 | E138: 810 | F138: 242 | J138: =255000-43000 -> 212000 | K138: 255000 | L138: 0 | M138: 255000 | N138: 0 | O138: 255000 | P138: 0 | Q138: 0
B139: 002 | C139: 0408 | D139: 3170120 | E139: 810 | F139: 242 | J139: 255000 | K139: 255000 | L139: 0 | M139: 255000 | N139: 0 | O139: 255000 | P139: 255000 | Q139: 100
A140: Дорожное хозяйство (дорожные фонды) | B140: 002 | C140: 0409 | D140: 0000000 | E140: 000 | F140: 000 | J140: =J141+J145+J152+J149 -> 17390552 | K140: =K141+K145+K152+K149 -> 17322500 | L140: 0 | M140: 17322500 | N140: 0 | O140: 17322500 | P140: 13261286 | Q140: 76.25569332
A141: Содержание автомобильных дорог общего пользования местного значения за счет средств областного бюджета | B141: 002 | C141: 0409 | D141: 3150110 | E141: 000 | F141: 000 | J141: =J142 -> 10327800 | K141: 10327800 | L141: 0 | M141: 10327800 | N141: 0 | O141: 10327800 | P141: =P142 -> 10327800 | Q141: 100
A142: Иные закупки товаров, работ и услуг для государственных(муниципальных) нужд | B142: 002 | C142: 0409 | D142: 3150110 | E142: 240 | F142: 000 | J142: =J143 -> 10327800 | K142: 10327800 | L142: 0 | M142: 10327800 | N142: 0 | O142: 10327800 | P142: =P143 -> 10327800 | Q142: 100
A143: Работы, услуги по содержанию имущества | B143: 002 | C143: 0409 | D143: 3150110 | E143: 240 | F143: 225 | J143: 10327800 | K143: 10327800 | L143: 0 | M143: 10327800 | N143: 0 | O143: 10327800 | P143: 10327800 | Q143: 100
B144: 002 | C144: 0409 | D144: 3150110 | E144: 240 | F144: 225 | J144: 10327800 | K144: 10327800 | L144: 0 | M144: 10327800 | N144: 0 | O144: 10327800 | P144: 10327800 | Q144: 100
A145: Ремонт автомобильных дорог общего пользования местного значения за счет средств областного бюджета | B145: 002 | C145: 0409 | D145: 3150120 | E145: 000 | F145: 000 | J145: =J146 -> 2164700 | K145: 2164700 | L145: 0 | M145: 2164700 | N145: 0 | O145: 2164700 | P145: =P146 -> 2164700 | Q145: 100
A146: Иные закупки товаров, работ и услуг для государственных(муниципальных) нужд | B146: 002 | C146: 0409 | D146: 3150120 | E146: 240 | F146: 000 | J146: =J147 -> 2164700 | K146: 2164700 | L146: 0 | M146: 2164700 | N146: 0 | O146: 2164700 | P146: =P147 -> 2164700 | Q146: 100
A147: Работы, услуги по содержанию имущества | B147: 002 | C147: 0409 | D147: 3150120 | E147: 240 | F147: 225 | J147: 2164700 | K147: 2164700 | L147: 0 | M147: 2164700 | N147: 0 | O147: 2164700 | P147: 2164700 | Q147: 100
B148: 002 | C148: 0409 | D148: 3150120 | E148: 240 | F148: 225 | J148: 2164700 | K148: 2164700 | L148: 0 | M148: 2164700 | N148: 0 | O148: 2164700 | P148: 2164700 | Q148: 100
A149: Мероприятия по реализации Федерального закона от 9 февраля 2007 года N 16-ФЗ "О транспортно йбезопасности" в сфере дорожного хозяйства | B149: 002 | C149: 0409 | D149: 3150302 | E149: 000 | F149: 000 | J149: =J150 -> 68052 | K149: =K150 -> 0 | L149: 0 | M149: 0 | N149: 0 | O149: 0 | P149: 0 | Q149: 0
A150: Иные закупки товаров, работ и услуг для государственных (муниципальных) нужд | B150: 002 | C150: 0409 | D150: 3150302 | E150: 240 | F150: 000 | J150: =J151 -> 68052 | K150: 0 | L150: 0 | M150: 0 | N150: 0 | O150: 0 | P150: 0 | Q150: 0
A151: Прочие работы, услуги | B151: 002 | C151: 0409 | D151: 3150302 | E151: 240 | F151: 226 | J151: 68052 | P151: 0 | Q151: 0
A152: Содерж автомобильных дорог и инженерных сооружений на них в границах городских округов в рамках благоустройства | B152: 002 | C152: 0409 | D152: 6000200 | E152: 000 | F152: 000 | J152: =J153 -> 4830000 | K152: 4830000 | L152: 0 | M152: 4830000 | N152: 0 | O152: 4830000 | P152: =P153 -> 768786 | Q152: 15.91689441
A153: Иные закупки товаров, работ и услуг для государственных(муниципальных) нужд | B153: 002 | C153: 0409 | D153: 6000200 | E153: 240 | F153: 000 | J153: =J154 -> 4830000 | K153: 4830000 | L153: 0 | M153: 4830000 | N153: 0 | O153: 4830000 | P153: =P154 -> 768786 | Q153: 15.91689441
A154: Работы, услуги по содержанию имущества | B154: 002 | C154: 0409 | D154: 6000200 | E154: 240 | F154: 225 | J154: 4830000 | K154: 4830000 | L154: 0 | M154: 4830000 | N154: 0 | O154: 4830000 | P154: 768786 | Q154: 15.91689441
B155: 002 | C155: 0409 | D155: 6000200 | E155: 240 | F155: 225 | J155: 4830000 | K155: 4830000 | L155: 0 | M155: 4830000 | N155: 0 | O155: 4830000 | P155: 4830000 | Q155: 100
A156: Другие вопросы в области национальной экономики | B156: 002 | C156: 0412 | D156: 0000000 | E156: 000 | F156: 000 | J156: =J157+J163+J167 -> 246500 | K156: 246500 | L156: 0 | M156: 246500 | N156: 0 | O156: 246500 | P156: =P157+P163+P167 -> 125154.82 | Q156: 50.77274645
A157: Осуществление отдельных государственных полномочий Брянской области в области охраны труда | B157: 002 | C157: 0412 | D157: 5210222 | E157: 000 | F157: 000 | J157: =J158 -> 143500 | K157: 143500 | L157: 0 | M157: 143500 | N157: 0 | O157: 143500 | P157: =P158 -> 25154.82 | Q157: 17.52949129
A158: Расходы на выплаты персоналу государственных (муниципальных) органов | B158: 002 | C158: 0412 | D158: 5210222 | E158: 120 | F158: 000 | J158: =J159+J161 -> 143500 | K158: 143500 | L158: 0 | M158: 143500 | N158: 0 | O158: 143500 | P158: =P159+P161 -> 25154.82 | Q158: 17.52949129
A159: Заработная плата | B159: 002 | C159: 0412 | D159: 5210222 | E159: 120 | F159: 211 | J159: 110215 | K159: 110215 | L159: 0 | M159: 110215 | N159: 0 | O159: 110215 | P159: 20279.2 | Q159: 18.39967337
B160: 002 | C160: 0412 | D160: 5210222 | E160: 120 | F160: 211 | J160: 110215 | K160: 110215 | L160: 0 | M160: 110215 | N160: 0 | O160: 110215 | Q160: 0
A161: Начисления на выплаты по оплате труда | B161: 002 | C161: 0412 | D161: 5210222 | E161: 120 | F161: 213 | J161: 33285 | K161: 33285 | L161: 0 | M161: 33285 | N161: 0 | O161: 33285 | P161: 4875.62 | Q161: 14.64809974
B162: 002 | C162: 0412 | D162: 5210222 | E162: 120 | F162: 213 | J162: 33285 | K162: 33285 | L162: 0 | M162: 33285 | N162: 0 | O162: 33285 | P162: 33285 | Q162: 100
A163: ДЦП "Поддержка малого и среднего предпринимательства в городе Фокино на 2012-2014гг" | B163: 002 | C163: 0412 | D163: 7951900 | E163: 000 | F163: 000 | J163: =J164 -> 3000 | K163: 3000 | L163: 0 | M163: 3000 | N163: 0 | O163: 3000 | P163: =P164 -> 0 | Q163: 0
A164: Иные закупки товаров, работ и услуг для государственных(муниципальных) нужд | B164: 002 | C164: 0412 | D164: 7951900 | E164: 240 | F164: 000 | J164: =J165 -> 3000 | K164: 3000 | L164: 0 | M164: 3000 | N164: 0 | O164: 3000 | P164: =P165 -> 0 | Q164: 0
A165: Увеличение стоимости материальных запасов | B165: 002 | C165: 0412 | D165: 7951900 | E165: 240 | F165: 340 | J165: 3000 | K165: 3000 | L165: 0 | M165: 3000 | N165: 0 | O165: 3000 | P165: 0 | Q165: 0
B166: 002 | C166: 0412 | D166: 7951900 | E166: 240 | F166: 340 | J166: 3000 | K166: 3000 | L166: 0 | M166: 3000 | N166: 0 | O166: 3000 | P166: 3000 | Q166: 100
A167: Долгосрочная целевая программа "Реформирование земельных, имущественных отношений и градостроительства ( 2012-2014 гг)" | B167: 002 | C167: 0412 | D167: 7952300 | E167: 000 | F167: 000 | J167: =J168 -> 100000 | K167: 100000 | L167: 0 | M167: 100000 | N167: 0 | O167: 100000 | P167: =P168 -> 100000 | Q167: 100
A168: Иные закупки товаров, работ и услуг для государственных(муниципальных) нужд | B168: 002 | C168: 0412 | D168: 7952300 | E168: 240 | F168: 000 | J168: =J169 -> 100000 | K168: 100000 | L168: 0 | M168: 100000 | N168: 0 | O168: 100000 | P168: =P169 -> 100000 | Q168: 100
A169: Прочие работы, услуги | B169: 002 | C169: 0412 | D169: 7952300 | E169: 240 | F169: 226 | J169: 100000 | K169: 100000 | L169: 0 | M169: 100000 | N169: 0 | O169: 100000 | P169: 100000 | Q169: 100
B170: 002 | C170: 0412 | D170: 7952300 | E170: 240 | F170: 226 | J170: 100000 | K170: 100000 | L170: 0 | M170: 100000 | N170: 0 | O170: 100000 | P170: 100000 | Q170: 100
A171: ЖИЛИЩНО-КОММУНАЛЬНОЕ ХОЗЯЙСТВО | B171: 002 | C171: 0500 | D171: 0000000 | E171: 000 | F171: 000 | J171: =J172+J187 -> 3738706.95 | K171: 3489800 | L171: 0 | M171: 3489800 | N171: 0 | O171: 3489800 | P171: =P172+P187 -> 1025299.32 | Q171: 27.42390173
A172: Коммунальное хозяйство | B172: 002 | C172: 0502 | D172: 0000000 | E172: 000 | F172: 000 | J172: =J173+J177+J183 -> 1318906.95 | K172: 1070000 | L172: 0 | M172: 1070000 | N172: 0 | O172: 1070000 | P172: =P173+P177+P183 -> 286747 | Q172: 21.74126082
A173: Мероприятия в области коммунального хозяйства | B173: 002 | C173: 0502 | D173: 3510500 | E173: 000 | F173: 000 | J173: =J174 -> 1048906.95 | K173: 800000 | L173: 0 | M173: 800000 | N173: 0 | O173: 800000 | P173: =P174 -> 283747 | Q173: 27.05168461
A174: Субсидии юридическим лицам (кроме государственных(муниципальных) учреждений), индивидуальным предпринимателям и физическим лицам - производителям товаров, работ, услуг | B174: 002 | C174: 0502 | D174: 3510500 | E174: 810 | F174: 000 | J174: =J175 -> 1048906.95 | K174: 800000 | L174: 0 | M174: 800000 | N174: 0 | O174: 800000 | P174: =P175 -> 283747 | Q174: 27.05168461
A175: Безвозмездные перечисления государственным и муниципальным организациям | B175: 002 | C175: 0502 | D175: 3510500 | E175: 810 | F175: 241 | J175: =800000+248906.95 -> 1048906.95 | K175: 800000 | L175: 0 | M175: 800000 | N175: 0 | O175: 800000 | P175: 283747 | Q175: 27.05168461
B176: 002 | C176: 0502 | D176: 3510500 | E176: 810 | F176: 241 | J176: 800000 | K176: 800000 | L176: 0 | M176: 800000 | N176: 0 | O176: 800000 | P176: 800000 | Q176: 100
A177: Долгосрочная целевая программа "Энергосбережение и повышение энергоэффективности в г. Фокино (2011-2020гг)" | B177: 002 | C177: 0502 | D177: 7951800 | E177: 000 | F177: 000 | J177: =J178 -> 250000 | K177: 250000 | L177: 0 | M177: 250000 | N177: 0 | O177: 250000 | P177: =P178 -> 3000 | Q177: 1.2
A178: Бюджетные инвестиции в объекты муниципальной собственности | B178: 002 | C178: 0502 | D178: 7951800 | E178: 411 | F178: 000 | J178: =J179+J181 -> 250000 | K178: 250000 | L178: 0 | M178: 250000 | N178: 0 | O178: 250000 | P178: =P179+P181 -> 3000 | Q178: 1.2
A179: Прочие работы, услуги | B179: 002 | C179: 0502 | D179: 7951800 | E179: 411 | F179: 226 | J179: 3000 | K179: 3000 | L179: 0 | M179: 3000 | N179: 0 | O179: 3000 | P179: 3000 | Q179: 100
B180: 002 | C180: 0502 | D180: 7951800 | E180: 411 | F180: 226 | J180: 3000 | K180: 3000 | L180: 0 | M180: 3000 | N180: 0 | O180: 3000 | Q180: 0
A181: Увеличение стоимости основных средств | B181: 002 | C181: 0502 | D181: 7951800 | E181: 411 | F181: 310 | J181: 247000 | K181: 247000 | L181: 0 | M181: 247000 | N181: 0 | O181: 247000 | P181: 0 | Q181: 0
B182: 002 | C182: 0502 | D182: 7951800 | E182: 411 | F182: 310 | J182: 247000 | K182: 247000 | L182: 0 | M182: 247000 | N182: 0 | O182: 247000 | P182: 247000 | Q182: 100
A183: Долгосрочная целевая программа "Инженерное обустройство населенных пунктов Брянской области" (2009-2015 годы),Подпрограмма "Газификация Брянской области" (2009-2015 годы) | B183: 002 | C183: 0502 | D183: 9220301 | E183: 000 | F183: 000 | J183: =J184 -> 20000 | K183: 20000 | L183: 0 | M183: 20000 | N183: 0 | O183: 20000 | P183: =P184 -> 0 | Q183: 0
A184: Иные закупки товаров, работ и услуг для государственных(муниципальных) нужд | B184: 002 | C184: 0502 | D184: 9220301 | E184: 240 | F184: 000 | J184: =J185 -> 20000 | K184: 20000 | L184: 0 | M184: 20000 | N184: 0 | O184: 20000 | P184: =P185 -> 0 | Q184: 0
A185: Увеличение стоимости основных средств | B185: 002 | C185: 0502 | D185: 9220301 | E185: 240 | F185: 310 | J185: 20000 | K185: 20000 | L185: 0 | M185: 20000 | N185: 0 | O185: 20000 | P185: 0 | Q185: 0
B186: 002 | C186: 0502 | D186: 9220301 | E186: 240 | F186: 310 | J186: 20000 | K186: 20000 | L186: 0 | M186: 20000 | N186: 0 | O186: 20000 | P186: 20000 | Q186: 100
A187: Благоустройство | B187: 002 | C187: 0503 | D187: 0000000 | E187: 000 | F187: 000 | J187: =J188+J196+J200 -> 2419800 | K187: 2419800 | L187: 0 | M187: 2419800 | N187: 0 | O187: 2419800 | P187: =P188+P196+P200 -> 738552.32 | Q187: 30.52121332
A188: Уличное освещение | B188: 002 | C188: 0503 | D188: 6000100 | E188: 000 | F188: 000 | J188: =J189 -> 1105000 | K188: 1105000 | L188: 0 | M188: 1105000 | N188: 0 | O188: 1105000 | P188: =P189 -> 413120.32 | Q188: 37.3864543
A189: Иные закупки товаров, работ и услуг для государственных(муниципальных) нужд | B189: 002 | C189: 0503 | D189: 6000100 | E189: 240 | F189: 000 | J189: =J190+J192+J194 -> 1105000 | K189: 1105000 | L189: 0 | M189: 1105000 | N189: 0 | O189: 1105000 | P189: =P190+P192+P194 -> 413120.32 | Q189: 37.3864543
A190: Коммунальные услуги | B190: 002 | C190: 0503 | D190: 6000100 | E190: 240 | F190: 223 | J190: 1060000 | K190: 1060000 | L190: 0 | M190: 1060000 | N190: 0 | O190: 1060000 | P190: 405525.52 | Q190: 38.25712453
B191: 002 | C191: 0503 | D191: 6000100 | E191: 240 | F191: 223 | J191: 1060000 | K191: 1060000 | L191: 0 | M191: 1060000 | N191: 0 | O191: 1060000 | Q191: 0
A192: Работы, услуги по содержанию имущества | B192: 002 | C192: 0503 | D192: 6000100 | E192: 240 | F192: 225 | J192: 25000 | K192: 25000 | L192: 0 | M192: 25000 | N192: 0 | O192: 25000 | P192: 0 | Q192: 0
B193: 002 | C193: 0503 | D193: 6000100 | E193: 240 | F193: 225 | J193: 25000 | K193: 25000 | L193: 0 | M193: 25000 | N193: 0 | O193: 25000 | Q193: 0
A194: Увеличение стоимости материальных запасов | B194: 002 | C194: 0503 | D194: 6000100 | E194: 240 | F194: 340 | J194: 20000 | K194: 20000 | L194: 0 | M194: 20000 | N194: 0 | O194: 20000 | P194: 7594.8 | Q194: 37.974
B195: 002 | C195: 0503 | D195: 6000100 | E195: 240 | F195: 340 | J195: 20000 | K195: 20000 | L195: 0 | M195: 20000 | N195: 0 | O195: 20000 | P195: 20000 | Q195: 100
A196: Организация и содержание мест захоронения | B196: 002 | C196: 0503 | D196: 6000400 | E196: 000 | F196: 000 | J196: =J197 -> 120000 | K196: 120000 | L196: 0 | M196: 120000 | N196: 0 | O196: 120000 | P196: =P197 -> 26746 | Q196: 22.28833333
A197: Субсидии юридическим лицам (кроме государственных(муниципальных) учреждений), индивидуальным предпринимателям и физическим лицам - производителям товаров, работ, услуг | B197: 002 | C197: 0503 | D197: 6000400 | E197: 810 | F197: 000 | J197: =J198 -> 120000 | K197: 120000 | L197: 0 | M197: 120000 | N197: 0 | O197: 120000 | P197: =P198 -> 26746 | Q197: =P197/J197*100 -> 22.28833333
A198: Безвозмездные перечисления государственным и муниципальным организациям | B198: 002 | C198: 0503 | D198: 6000400 | E198: 810 | F198: 241 | J198: 120000 | K198: 120000 | L198: 0 | M198: 120000 | N198: 0 | O198: 120000 | P198: 26746 | Q198: 22.28833333
B199: 002 | C199: 0503 | D199: 6000400 | E199: 810 | F199: 241 | J199: 120000 | K199: 120000 | L199: 0 | M199: 120000 | N199: 0 | O199: 120000 | P199: 120000 | Q199: 100
A200: Долгосрочная целевая программа "Энергосбережение и повышение энергоэффективности в г. Фокино (2011-2020гг)" | B200: 002 | C200: 0503 | D200: 7951800 | E200: 000 | F200: 000 | J200: =J201 -> 1194800 | K200: 1194800 | L200: 0 | M200: 1194800 | N200: 0 | O200: 1194800 | P200: =P201 -> 298686 | Q200: 24.99882826
... 327 more rows
